fUSD/lending_fUSD_20260227
["ID","MTS","AMOUNT","RATE_DAILY","PERIOD"]
[406785950,1772191845600,-1066.98996505,0.00031794,2]
[406785951,1772191845610,-1000.0,0.00031827,2]
[406785952,1772191845621,-150.0,0.00031844,2]
[406785953,1772191845631,-150.0,0.0003185,2]
[406785954,1772191845641,-150.0,0.00031853,2]
[406785955,1772191845651,-150.0,0.0003186,2]
[406785956,1772191845663,-1000.0,0.0003187,2]
[406785957,1772191845673,-509.0,0.00031875,17]
[406785958,1772191845683,-1000.0,0.00031876,2]
[406785959,1772191845694,-150.0,0.00031895,2]
[406785960,1772191845704,-300.0,0.00031899,10]
[406785961,1772191845715,-150.0,0.00031899,2]
[406785962,1772191845725,-150.0,0.00031899,2]
[406785963,1772191845735,-150.0,0.00031899,2]
[406785964,1772191845745,-150.0,0.00031899,2]
[406785965,1772191845756,-290.59963285,0.00031899,2]
[406785966,1772191845765,-218.2175256,0.000319,2]
[406785967,1772191845776,-310.82013366,0.000319,2]
[406785968,1772191845787,-200.0,0.000319,30]
[406785969,1772191845796,-213.66,0.000319,30]
[406785970,1772191845806,-1000.0,0.000319,2]
[406785971,1772191845817,-443.46717804,0.000319,2]
[406785972,1772191845827,-2000.0,0.000319,2]
[406785973,1772191845837,-27278.73292219,0.000319,2]
[406785974,1772191845847,-200.0,0.000319,10]
[406785975,1772191845856,-2516.92470873,0.000319,2]
[406785976,1772191845866,-302.93479,0.000319,24]
[406785977,1772191845876,-302.9348,0.000319,24]
[406785978,1772191845885,-40948.5286649,0.00032,120]
[406785994,1772191846285,-3323.5,0.00032,120]
[406785995,1772191846296,-629591.48626437,0.00032,120]
[406785996,1772191846306,-1000.0,0.00032,2]
[406785997,1772191846316,-62969.82,0.00032,120]
[406785999,1772191846325,-28035.50630232,0.00032,2]
[406786000,1772191847500,-644.95981909,0.00032,2]
[406786001,1772191847543,-16650.0,0.00032,2]
[406786002,1772191847624,-1340.0,0.00016335,2]
[406786003,1772191847634,-53831.02684868,0.00032,2]
[406786004,1772191847644,-200.0,0.00032,2]
[406786005,1772191847657,-1511.0,0.00032,120]
[406786006,1772191847666,-1511.0,0.00032,120]
[406786007,1772191847677,-1511.0,0.00032,120]
[406786008,1772191847687,-1511.0,0.00032,120]
[406786009,1772191847699,-1511.0,0.00032,120]
[406786010,1772191847709,-1511.0,0.00032,120]
[406786011,1772191847719,-1511.0,0.00032,120]
[406786012,1772191847729,-151.0,0.00032,120]
[406786013,1772191847738,-1511.0,0.00032,120]
[406786014,1772191847748,-151.0,0.00032,120]
[406786015,1772191847757,-1511.0,0.00032,120]
[406786016,1772191847767,-151.0,0.00032,120]
[406786017,1772191847777,-1511.0,0.00032,120]
[406786018,1772191847786,-151.0,0.00032,120]
[406786019,1772191847796,-1511.0,0.00032,120]
[406786020,1772191847806,-151.0,0.00032,30]
[406786021,1772191847816,-151.0,0.00032,120]
[406786022,1772191847825,-1511.0,0.00032,120]
[406786023,1772191847834,-151.0,0.00032,30]
[406786024,1772191847844,-151.0,0.00032,120]
[406786025,1772191847853,-1511.0,0.00032,120]
[406786026,1772191847863,-151.0,0.00032,120]
[406786027,1772191847872,-151.0,0.00032,30]
[406786028,1772191847881,-1511.0,0.00032,120]
[406786029,1772191847890,-151.0,0.00032,120]
[406786030,1772191847900,-151.0,0.00032,30]
[406786031,1772191847911,-151.0,0.00032,120]
[406786032,1772191847921,-1511.0,0.00032,120]
[406786033,1772191847930,-151.0,0.00032,30]
[406786034,1772191847941,-1511.0,0.00032,120]
[406786035,1772191847951,-151.0,0.00032,30]
[406786036,1772191847962,-151.0,0.00032,120]
[406786037,1772191847973,-151.0,0.00032,30]
[406786038,1772191847983,-151.0,0.00032,120]
[406786039,1772191847993,-151.0,0.00032,30]
[406786040,1772191848004,-151.0,0.00032,120]
[406786041,1772191848014,-151.0,0.00032,30]
[406786042,1772191848024,-151.0,0.00032,120]
[406786043,1772191848033,-151.0,0.00032,30]
[406786044,1772191848044,-1511.0,0.00032,120]
[406786045,1772191848054,-250.72418667,0.00032,120]
[406786046,1772191848064,-151.0,0.00032,30]
[406786047,1772191848075,-1511.0,0.00032,120]
[406786048,1772191848089,-151.0,0.00032,30]
[406786049,1772191848102,-1511.0,0.00032,120]
[406786050,1772191848113,-1511.0,0.00032,120]
[406786051,1772191848122,-151.0,0.00032,30]
[406786052,1772191848134,-244.03346909,0.00032,30]
[406786053,1772191848145,-1511.0,0.00032,120]
[406786054,1772191848155,-1511.0,0.00032,120]
[406786055,1772191848167,-1511.0,0.00032,120]
[406786056,1772191848178,-887.42293333,0.00032,120]
[406786057,1772191848188,-160.66556425,0.00032,120]
[406786058,1772191848198,-200.0,0.00032,30]
[406786059,1772191848208,-200.0,0.00032,30]
[406786060,1772191848217,-151.0,0.00032,7]
[406786061,1772191848226,-151.0,0.00032,7]
[406786062,1772191848236,-176.639564,0.00032,7]
[406786063,1772191848246,-176.639564,0.00032,7]
[406786064,1772191848256,-176.639564,0.00032,7]
[406786065,1772191848266,-176.639564,0.00032,7]
[406786066,1772191848275,-487.770219,0.00032,7]
[406786067,1772191848284,-487.770219,0.00032,7]
[406786068,1772191848293,-487.770219,0.00032,7]
[406786069,1772191848303,-487.770219,0.00032,7]
[406786070,1772191848313,-623.78997997,0.00032,2]
[406786071,1772191848323,-671.063363,0.00032,7]
[406786072,1772191848332,-671.063363,0.00032,7]
[406786073,1772191848341,-671.063363,0.00032,7]
[406786074,1772191848351,-671.063363,0.00032,7]
[406786075,1772191848361,-347.32002,0.00032,7]
[406786076,1772191848371,-347.32002,0.00032,7]
[406786077,1772191848380,-347.32002,0.00032,7]
[406786078,1772191848390,-347.32002,0.00032,7]
[406786079,1772191848400,-151.0,0.00032,7]
[406786080,1772191848410,-239.608818,0.00032,7]
[406786081,1772191848419,-239.608818,0.00032,7]
[406786082,1772191848428,-239.608818,0.00032,7]
[406786083,1772191848438,-239.608818,0.00032,7]
[406786084,1772191848447,-246.873954,0.00032,7]
[406786085,1772191848457,-221.367673,0.00032,10]
[406786086,1772191848467,-151.0,0.00032,7]
[406786087,1772191848477,-278.322927,0.00032,7]
[406786088,1772191848486,-151.0,0.00032,7]
[406786089,1772191848497,-151.0,0.00032,7]
[406786090,1772191848506,-361.292831,0.00032,7]
[406786091,1772191848517,-361.292831,0.00032,7]
[406786092,1772191848528,-361.292831,0.00032,7]
[406786093,1772191848538,-361.292831,0.00032,7]
[406786094,1772191848547,-151.0,0.00032,7]
[406786095,1772191848557,-151.0,0.00032,7]
[406786096,1772191848568,-151.0,0.00032,7]
[406786097,1772191848577,-322.815662,0.00032,7]
[406786098,1772191848587,-322.815662,0.00032,7]
[406786099,1772191848596,-322.815662,0.00032,7]
[406786100,1772191848605,-322.815662,0.00032,7]
[406786101,1772191848614,-151.0,0.00032,7]
[406786102,1772191848624,-731.382172,0.00032,7]
[406786103,1772191848634,-731.382172,0.00032,7]
[406786104,1772191848644,-731.382172,0.00032,7]
[406786105,1772191848654,-731.382172,0.00032,7]
[406786106,1772191848664,-612.14922787,0.00032,14]
[406786107,1772191848673,-350.0,0.00032161,5]
[406786108,1772191848682,-7918.42319032,0.00032292,2]
[406786109,1772191848691,-200.0,0.0003232,2]
[406786110,1772191848701,-324.0,0.00032325,120]
[406786111,1772191848710,-162.0,0.00032408,120]
[406786112,1772191848720,-221.52,0.00032452,2]
[406786113,1772191848730,-2000.0,0.000327,2]
[406786114,1772191848739,-894.1926491,0.00032877,2]
[406786115,1772191848748,-151.0,0.00032877,31]
[406786116,1772191848758,-151.0,0.00032877,31]
[406786117,1772191848767,-151.0,0.00032877,31]
[406786118,1772191848776,-280.271723,0.00032877,31]
[406786119,1772191848786,-500.0,0.00032877,30]
[406786120,1772191848796,-500.0,0.00032877,30]
[406786121,1772191848805,-375.95495348,0.00032877,5]
[406786122,1772191848814,-562.18013926,0.00032877,5]
[406786123,1772191848824,-1456.23,0.000329,14]
[406786124,1772191848835,-5515.33,0.000329,14]
[406786125,1772191848844,-7675.47,0.000329,14]
[406786126,1772191848854,-14687.45,0.000329,2]
[406786127,1772191848863,-221.52,0.00032904,2]
[406786128,1772191848873,-152.8213546,0.00032932,2]
[406786129,1772191848994,-1000.0,0.00033,2]
[406786130,1772191849012,-1000.0,0.00033,120]
[406786131,1772191849022,-2000.0,0.00033,7]
[406786132,1772191849032,-773.2413689,0.00033041,2]
[406786133,1772191849041,-150.0,0.00033043,2]
[406786134,1772191849051,-167.0,0.00033264,7]
[406786135,1772191849061,-221.52,0.00033356,2]
[406786136,1772191849070,-350.0,0.00033401,8]
[406786137,1772191849080,-471.09,0.00033598,30]
[406786138,1772191849090,-1001.5686,0.000336,2]
[406786139,1772191849101,-1053.977,0.00033808,36]
[406786140,1772191849110,-324.0,0.00033941,120]
[406786141,1772191849119,-5118.29,0.00033973,2]
[406786142,1772191849130,-2350.0,0.00034,2]
[406786143,1772191849140,-5515.33,0.00034,14]
[406786144,1772191849150,-7675.47,0.00034,14]
[406786145,1772191849160,-162.0,0.00034028,120]
[406786146,1772191849172,-2000.0,0.000341,7]
[406786147,1772191849184,-845.0,0.00034142,11]
[406786148,1772191849194,-291.99,0.00034208,60]
[406786149,1772191849204,-572.3,0.00034241,2]
[406786150,1772191849213,-14687.45,0.000343,2]
[406786151,1772191849222,-1211.0,0.00034335,2]
[406786152,1772191849231,-190796.4285057,0.00034341,2]
[406786153,1772191849240,-6136.1083749,0.00034341,2]
[406786154,1772191849251,-5515.33,0.000346,14]
[406786155,1772191849261,-7675.47,0.000346,14]
[406786156,1772191849270,-193.42,0.000346,30]
[406786157,1772191849280,-150.0,0.00034696,2]
[406786158,1772191849291,-509.0,0.00034706,19]
[406786159,1772191849300,-844.42,0.00034712,30]
[406786160,1772191849311,-350.0,0.00034713,7]
[406786161,1772191849321,-1500.0,0.00034795,2]
[406786162,1772191849331,-1040.2,0.00034945,5]
[406786163,1772191849342,-700.0,0.00034969,5]
[406786164,1772191849351,-1500.0,0.00035,2]
[406786165,1772191849362,-1005.47954759,0.00035,7]
[406786166,1772191849372,-3000.0,0.00035,7]
[406786167,1772191849382,-5515.33,0.00035,14]
[406786168,1772191849393,-7675.47,0.00035,14]
[406786169,1772191849402,-151.79091639,0.00035,30]
[406786170,1772191849412,-200.0,0.00035,3]
[406786171,1772191849422,-1000.0,0.00035,120]
[406786172,1772191849431,-300.0,0.00035068,30]
[406786173,1772191849441,-42572.4376482,0.00035203,2]
[406786174,1772191849450,-1369.1508443,0.00035203,2]
[406786175,1772191849459,-1456.23,0.000353,14]
[406786176,1772191849469,-14687.45,0.000353,2]
[406786177,1772191849479,-152.0,0.00035538,3]
[406786178,1772191849488,-208.66940579,0.00035589,30]
[406786179,1772191849497,-544.21519612,0.00035616,5]
[406786180,1772191849507,-151.0,0.00035616,31]
[406786181,1772191849517,-151.0,0.00035616,31]
[406786182,1772191849526,-219.601057,0.00035616,31]
[406786183,1772191849536,-324.0,0.00035638,120]
[406786184,1772191849545,-1040.2,0.00035648,5]
[406786185,1772191849555,-200.0,0.00035704,5]
[406786186,1772191849565,-1155.85865397,0.00035724,10]
[406786187,1772191849574,-162.0,0.00035729,120]
[406786188,1772191849585,-801.85129955,0.0003578,2]
[406786189,1772191849594,-1511.73357855,0.0003588,120]
[406786190,1772191849604,-499.77287,0.00035888,30]
[406786191,1772191849613,-1000.0,0.00036,2]
[406786192,1772191849623,-683.08360743,0.00036,2]
[406786193,1772191849632,-5000.0,0.00036049,10]
[406786194,1772191849642,-1000.0,0.00036067,2]
[406786195,1772191849651,-1000.0,0.00036067,2]
[406786196,1772191849661,-1000.0,0.00036067,2]
[406786197,1772191849671,-1000.0,0.00036067,2]
[406786198,1772191849680,-1000.0,0.00036067,2]
[406786199,1772191849690,-2517.99,0.00036074,10]
[406786200,1772191849700,-499.77287,0.00036088,30]
[406786201,1772191849709,-5000.0,0.0003609,10]
[406786202,1772191849719,-1000.0,0.0003609,2]
[406786203,1772191849728,-1000.0,0.0003609,2]
[406786204,1772191849737,-1000.0,0.0003609,2]
[406786205,1772191849746,-1000.0,0.0003609,2]
[406786206,1772191849756,-1000.0,0.0003609,2]
[406786207,1772191849767,-528.85,0.00036173,120]
[406786208,1772191849776,-500.0,0.00036173,120]
[406786209,1772191849786,-500.0,0.00036173,120]
[406786210,1772191849795,-25000.0,0.00036174,10]
[406786211,1772191849804,-5000.0,0.00036185,10]
[406786212,1772191849818,-5000.0,0.00036196,10]
[406786213,1772191849829,-25000.0,0.000362,10]
[406786214,1772191849838,-5000.0,0.00036226,10]
[406786215,1772191849847,-5000.0,0.00036245,10]
[406786216,1772191849856,-1250.5,0.00036257,10]
[406786217,1772191849870,-5000.0,0.00036267,10]
[406786218,1772191849879,-3577.25,0.00036273,10]
[406786219,1772191849891,-499.77287,0.00036288,30]
[406786220,1772191849900,-14687.45,0.000363,2]
[406786221,1772191849909,-2518.0,0.00036309,10]
[406786222,1772191849919,-1040.2,0.00036352,5]
[406786223,1772191849929,-5000.0,0.00036359,10]
[406786224,1772191849938,-4724.97,0.00036365,10]
[406786225,1772191849947,-2000.0,0.000364,2]
[406786226,1772191849958,-1698.94,0.00036424,10]
[406786227,1772191849969,-5000.0,0.00036427,10]
[406786228,1772191849979,-150.0,0.0003643,2]
[406786229,1772191849989,-471.09,0.00036482,30]
[406786230,1772191849998,-499.77287,0.00036488,30]
[406786231,1772191850008,-1313.54,0.00036491,10]
[406786232,1772191850018,-1456.23,0.000365,14]
[406786233,1772191850028,-6313.08999912,0.000365,120]
[406786234,1772191850038,-5000.0,0.00036505,10]
[406786235,1772191850048,-5000.0,0.00036577,10]
[406786236,1772191850058,-5000.0,0.00036623,10]
[406786237,1772191850069,-5000.0,0.00036625,10]
[406786238,1772191850079,-7918.42319032,0.00036644,2]
[406786239,1772191850089,-25000.0,0.00036656,10]
[406786240,1772191850101,-5000.0,0.00036676,10]
[406786241,1772191850111,-499.77287,0.00036688,30]
[406786242,1772191850120,-25000.0,0.00036701,10]
[406786243,1772191850131,-200.0,0.00036704,5]
[406786244,1772191850142,-5000.0,0.00036725,10]
[406786245,1772191850152,-322.40301155,0.00036755,2]
[406786246,1772191850162,-25000.0,0.00036765,10]
[406786247,1772191850174,-191.03,0.00036778,10]
[406786248,1772191850184,-5000.0,0.00036794,10]
[406786249,1772191850194,-160.67,0.00036794,10]
[406786250,1772191850204,-151.0,0.00036794,31]
[406786251,1772191850214,-151.0,0.00036794,31]
[406786252,1772191850224,-731.382172,0.00036794,31]
[406786253,1772191850234,-731.382172,0.00036794,31]
[406786254,1772191850244,-731.382172,0.00036794,31]
[406786255,1772191850254,-731.382172,0.00036794,31]
[406786256,1772191850264,-1618.53197853,0.000368,2]
[406786257,1772191850274,-151.0,0.000368,31]
[406786258,1772191850284,-151.0,0.000368,31]
[406786259,1772191850294,-151.0,0.000368,31]
[406786260,1772191850303,-151.0,0.000368,31]
[406786261,1772191850314,-5000.0,0.00036803,10]
[406786262,1772191850323,-487.770219,0.00036803,31]
[406786263,1772191850333,-487.770219,0.00036803,31]
[406786264,1772191850342,-487.770219,0.00036803,31]
[406786265,1772191850352,-487.770219,0.00036803,31]
[406786266,1772191850362,-671.063363,0.00036803,31]
[406786267,1772191850371,-671.063363,0.00036803,31]
[406786268,1772191850381,-671.063363,0.00036803,31]
[406786269,1772191850391,-671.063363,0.00036803,31]
[406786270,1772191850401,-347.32002,0.00036803,31]
[406786271,1772191850410,-347.32002,0.00036803,31]
[406786272,1772191850420,-347.32002,0.00036803,31]
[406786273,1772191850430,-347.32002,0.00036803,31]
[406786274,1772191850439,-239.608818,0.00036803,31]
[406786275,1772191850448,-239.608818,0.00036803,31]
[406786276,1772191850458,-239.608818,0.00036803,31]
[406786277,1772191850467,-239.608818,0.00036803,31]
[406786278,1772191850477,-151.0,0.00036803,31]
[406786279,1772191850487,-151.0,0.00036803,31]
[406786280,1772191850496,-151.0,0.00036803,31]
[406786281,1772191850506,-151.0,0.00036803,31]
[406786282,1772191850515,-361.292831,0.00036803,31]
[406786283,1772191850524,-361.292831,0.00036803,31]
[406786284,1772191850534,-361.292831,0.00036803,31]
[406786285,1772191850544,-361.292831,0.00036803,31]
[406786286,1772191850553,-322.815662,0.00036803,7]
[406786287,1772191850563,-322.815662,0.00036803,7]
[406786288,1772191850572,-322.815662,0.00036803,7]
[406786289,1772191850582,-322.815662,0.00036803,7]
[406786290,1772191850591,-5000.0,0.00036835,10]
[406786291,1772191850601,-151.0,0.00036835,31]
[406786292,1772191850611,-151.0,0.00036835,31]
[406786293,1772191850620,-176.639564,0.00036835,31]
[406786294,1772191850630,-176.639564,0.00036835,31]
[406786295,1772191850640,-176.639564,0.00036835,31]
[406786296,1772191850650,-176.639564,0.00036835,31]
[406786297,1772191850659,-528.85,0.00036851,120]
[406786298,1772191850668,-500.0,0.00036851,120]
[406786299,1772191850678,-500.0,0.00036851,120]
[406786300,1772191850688,-5000.0,0.00036852,10]
[406786301,1772191850697,-5000.0,0.00036868,10]
[406786302,1772191850707,-499.77287,0.00036888,30]
[406786303,1772191850716,-1665.9095,0.00036888,7]
[406786304,1772191850725,-211.0,0.0003689,30]
[406786305,1772191850735,-1657.9,0.00036892,10]
[406786306,1772191850744,-170.87,0.00036893,30]
[406786307,1772191850753,-164.0,0.000369,120]
[406786308,1772191850763,-1000.0,0.00036905,30]
[406786309,1772191850772,-14198.17502926,0.0003691,2]
[406786310,1772191850783,-1250.51,0.00036935,10]
[406786311,1772191850792,-5000.0,0.00036945,10]
[406786312,1772191850801,-5000.0,0.00036961,10]
[406786313,1772191850811,-5000.0,0.00036962,10]
[406786314,1772191850935,-5000.0,0.00036982,10]
[406786315,1772191850947,-14956.31,0.00036994,10]
[406786316,1772191850957,-365.0,0.00037,2]
[406786317,1772191850968,-363.94734729,0.00037,3]
[406786318,1772191850978,-166.50652523,0.00037,2]
[406786319,1772191850988,-3500.0,0.00037,2]
[406786320,1772191850999,-1040.2,0.00037056,7]
[406786321,1772191851009,-499.77287,0.00037088,30]
[406786322,1772191851018,-151.25687106,0.000372,120]
[406786323,1772191851028,-151.25687105,0.000372,120]
[406786324,1772191851038,-151.25687105,0.000372,120]
[406786325,1772191851048,-151.25687105,0.000372,120]
[406786326,1772191851057,-200.08,0.0003726,120]
[406786327,1772191851068,-500.0,0.00037272,120]
[406786328,1772191851078,-499.77287,0.00037288,30]
[406786329,1772191851089,-1211.0,0.00037335,2]
[406786330,1772191851101,-499.77287,0.00037488,30]
[406786331,1772191851110,-162.0,0.00037516,120]
[406786332,1772191851120,-509.0,0.00037537,22]
[406786333,1772191851131,-500.0,0.00037589,2]
[406786334,1772191851140,-4354.65613182,0.0003759,2]
[406786335,1772191851150,-499.77287,0.00037688,30]
[406786336,1772191851160,-200.0,0.00037704,5]
[406786337,1772191851170,-1040.2,0.00037759,7]
[406786338,1772191851180,-203.16523887,0.0003788,2]
[406786339,1772191851189,-69717.47646364,0.00037887,7]
[406786340,1772191851199,-14804.97796802,0.00037887,7]
[406786341,1772191851207,-37949.03233073,0.00037887,7]
[406786342,1772191851298,-541.50894,0.00037887,7]
[406786343,1772191851317,-734.20325573,0.00037887,7]
[406786344,1772191851332,-44835.63926185,0.00037887,7]
[406786345,1772191851341,-7716.83945985,0.00037887,7]
[406786346,1772191851351,-4076.56689884,0.00037887,7]
[406786347,1772191851360,-499.77287,0.00037888,30]
[406786348,1772191851369,-12598.75473239,0.00037891,2]
[406786349,1772191851379,-307.57516928,0.00037891,2]
[406786350,1772191851388,-1456.23,0.000379,14]
[406786351,1772191851397,-526.0,0.00038,5]
[406786352,1772191851407,-50295.590455,0.00038,120]
[406786353,1772191851417,-1238.0,0.00038,30]
[406786354,1772191851426,-250.0,0.00038,7]
[406786355,1772191851436,-4343.0,0.00038,5]
[406786356,1772191851445,-150.0,0.00038,120]
[406786357,1772191851455,-499.77287,0.00038088,30]
[406786358,1772191851464,-882.46526268,0.000381,33]
[406786359,1772191851474,-291.99,0.00038161,90]
[406786360,1772191851484,-150.0,0.00038252,2]
[406786361,1772191851493,-851.0,0.00038286,11]
[406786362,1772191851503,-499.77287,0.00038288,30]
[406786363,1772191851512,-185.86919859,0.000383,30]
[406786364,1772191851522,-18058.92770432,0.00038356,120]
[406786365,1772191851532,-323.2,0.00038356,120]
[406786366,1772191851542,-237.37622037,0.0003838,5]
[406786367,1772191851552,-790.30831316,0.00038463,7]
[406786368,1772191851564,-249.89168684,0.00038463,7]
[406786369,1772191851574,-414.76831316,0.00038488,30]
[406786370,1772191851671,-253.89561489,0.00030481,30]
[406786371,1772191851683,-500.10438511,0.00030481,30]
[406786372,1772191851693,-1215.0,0.00030481,30]
[406786373,1772191851703,-85.00455684,0.00038488,30]
[406786374,1772191851713,-831.51979763,0.00038519,2]
[406786375,1772191851723,-499.77287,0.00038688,30]
[406786376,1772191851733,-1008.92913454,0.000387,2]
[406786377,1772191851744,-200.0,0.00038704,5]
[406786378,1772191851754,-164.0,0.00038745,120]
[406786379,1772191851763,-1000.0,0.000388,120]
[406786380,1772191851772,-605.23,0.000388,120]
[406786381,1772191851784,-160.5,0.000388,5]
[406786382,1772191851794,-321.81,0.000388,120]
[406786383,1772191851804,-633.3,0.00038831,120]
[406786384,1772191851815,-4888.31381734,0.00038834,2]
[406786385,1772191851824,-468.5021293,0.000389,120]
[406786386,1772191851833,-14687.45,0.000389,30]
[406786387,1772191851843,-1000.0,0.00038904,5]
[406786388,1772191851852,-211.0,0.0003891,30]
[406786389,1772191851862,-155.0,0.00039,120]
[406786390,1772191851871,-4260.52242536,0.00039,2]
[406786392,1772191939673,-1332.1986,8.482e-05,2]
[406786393,1772191939728,-1332.72712459,8.482e-05,2]
[406786394,1772191942600,-1002.88567541,8.482e-05,2]
[406786395,1772191942626,-1481.90864918,0.00011129,2]
[406786396,1772191942717,-30.42135082,0.00011129,2]
[406786397,1772192155164,-3256.3798,8.481e-05,2]
[406786398,1772192155189,-3487.2504,8.481e-05,2]
[406786399,1772192161227,-1200.0,8.582e-05,2]
[406786400,1772192161288,300.0,8.582e-05,2]
[406786401,1772192162911,300.0,8.582e-05,2]
[406786402,1772192163911,250.0,8.583e-05,2]
[406786403,1772192164452,150.0,8.582e-05,2]
[406786404,1772192167369,-5000.01,8.583e-05,2]
[406786405,1772192170265,-5000.01,8.583e-05,2]
[406786406,1772192272349,-22885.2792,8.583e-05,2]
[406786407,1772192272370,-2500.0,8.583e-05,2]
[406786408,1772192272391,-4906.74261317,8.592e-05,2]
[406786409,1772192272412,-296.5,8.6e-05,2]
[406786410,1772192272600,-255.0,9.44e-05,2]
[406786411,1772192272637,-250.0,9.44e-05,2]
[406786412,1772192272659,-5000.0,9.441e-05,2]
[406786413,1772192272681,-433.0,0.00010384,2]
[406786414,1772192272702,-511.0,0.00011423,2]
[406786415,1772192272725,-250.0,0.00012187,2]
[406786416,1772192272745,-500.0,0.00013698,2]
[406786417,1772192272766,-266.0,0.0001399,2]
[406786418,1772192272786,-301.772151,0.00014146,7]
[406786419,1772192272807,-804.4829359,0.00014853,2]
[406786420,1772192272828,-510.0,0.0001489,2]
[406786421,1772192272849,-509.0,0.0001489,2]
[406786422,1772192272870,-509.0,0.0001489,2]
[406786423,1772192272890,-151.0,0.00015,2]
[406786424,1772192272911,-174.00015664,0.00015183,2]
[406786425,1772192272931,-160.0,0.00015183,2]
[406786426,1772192272951,-947.75,0.00015471,2]
[406786427,1772192272972,-1618.0,0.00015753,2]
[406786428,1772192272991,-6598.68599198,0.00016158,2]
[406786429,1772192273015,-599662.78695131,0.00016197,2]
[406786432,1772192630049,-450.0,0.00010299,2]
[406786433,1772192630078,-500.0,0.000103,2]
[406786434,1772192630107,-500.0,0.000103,2]
[406786435,1772192630135,-500.0,0.000103,2]
[406786436,1772192630163,-500.0,0.000103,2]
[406786437,1772192630258,-100.01,0.000103,2]
[406786438,1772192632716,-399.99,0.000103,2]
[406786439,1772192632746,-500.0,0.000103,2]
[406786440,1772192632773,-500.0,0.000103,2]
[406786441,1772192632800,-500.0,0.000103,2]
[406786442,1772192632830,-500.0,0.000103,2]
[406786443,1772192632915,-200.03,0.000103,2]
[406786444,1772192635853,-299.97,0.000103,2]
[406786445,1772192635881,-747.36498412,0.000103,2]
[406786446,1772192635910,-500.0,0.000103,2]
[406786447,1772192635938,-500.0,0.0001289,2]
[406786448,1772192635964,-405.34003176,0.0001289,2]
[406786449,1772192636043,-94.65996824,0.0001289,2]
[406786450,1772192638750,-500.0,0.0001289,2]
[406786451,1772192638776,-500.0,0.0001289,2]
[406786452,1772192638803,-500.0,0.0001289,2]
[406786453,1772192638829,-500.0,0.0001289,2]
[406786454,1772192638855,-500.0,0.0001289,2]
[406786455,1772192638944,-0.01,0.0001289,2]
[406786456,1772192934373,-180.0,8.383e-05,2]
[406786457,1772192941301,300.0,8.382e-05,2]
[406786458,1772192950724,500.0,8.381e-05,2]
[406786459,1772192955872,-5000.01,8.383e-05,2]
[406786460,1772192958783,-5000.01,8.383e-05,2]
[406786461,1772192964678,-5000.01,8.383e-05,2]
[406786462,1772192967820,-5000.01,8.383e-05,2]
[406786463,1772192971120,-5000.01,8.383e-05,2]
[406786464,1772192973836,-5000.01,8.383e-05,2]
[406786465,1772192976934,-851.2831,8.383e-05,2]
[406786466,1772192976960,-3297.4438,8.383e-05,2]
[406786488,1772193031608,-195.0,8.392e-05,2]
[406786489,1772193031618,-347.42,8.396e-05,2]